[Event "Titled Tuesday Blitz August 16 Late 2022"]
[White "Hansen, Eric"]
[Black "Fier, Alexandr"]
[WhiteFideId "2606771"]
[BlackFideId "2107139"]
[WhiteElo "2568"]
[BlackElo "2598"]
[Result "1-0"]
[Round "04"]
[TimeControl "180+1"]
[Date "2022.08.16"]
[WhiteClock "0:00:06"]
[BlackClock "0:00:17"]

1. e4 {[%clk 0:03:00]}  Nf6 {[%clk 0:02:59]} 2. e5 {[%clk 0:03:00]}  Nd5 {[%clk 0:03:00]} 3. c4 {[%clk 0:03:01]}  Nb6 {[%clk 0:03:00]} 4. d4 {[%clk 0:03:02]}  d6 {[%clk 0:03:01]} 5. exd6 {[%clk 0:03:02]}  exd6 {[%clk 0:03:01]} 6. Nc3 {[%clk 0:03:02]}  Nc6 {[%clk 0:03:02]} 7. Be3 {[%clk 0:03:01]}  Be7 {[%clk 0:03:02]} 8. Rc1 {[%clk 0:02:59]}  O-O {[%clk 0:03:02]} 9. Bd3 {[%clk 0:02:58]}  Bf6 {[%clk 0:02:57]} 10. Nge2 {[%clk 0:02:57]}  Nb4 {[%clk 0:02:57]} 11. O-O {[%clk 0:02:50]}  Nxd3 {[%clk 0:02:57]} 12. Qxd3 {[%clk 0:02:51]}  c6 {[%clk 0:02:57]} 13. Ng3 {[%clk 0:02:47]}  d5 {[%clk 0:02:57]} 14. b3 {[%clk 0:02:47]}  Be6 {[%clk 0:02:56]} 15. Nce2 {[%clk 0:02:43]}  a5 {[%clk 0:02:51]} 16. Nf4 {[%clk 0:02:36]}  Re8 {[%clk 0:02:48]} 17. Rfd1 {[%clk 0:02:27]}  a4 {[%clk 0:02:47]} 18. c5 {[%clk 0:02:24]}  Nc8 {[%clk 0:02:44]} 19. b4 {[%clk 0:02:19]}  Na7 {[%clk 0:02:43]} 20. Nge2 {[%clk 0:01:57]}  Bg4 {[%clk 0:02:38]} 21. Re1 {[%clk 0:01:50]}  Bxe2 {[%clk 0:02:36]} 22. Nxe2 {[%clk 0:01:43]}  Nb5 {[%clk 0:02:36]} 23. Nc3 {[%clk 0:01:44]}  Nxc3 {[%clk 0:02:36]} 24. Qxc3 {[%clk 0:01:44]}  Re4 {[%clk 0:02:35]} 25. f3 {[%clk 0:01:43]}  Re6 {[%clk 0:02:32]} 26. Bf2 {[%clk 0:01:43]}  Rxe1+ {[%clk 0:02:15]} 27. Rxe1 {[%clk 0:01:43]}  Qd7 {[%clk 0:02:16]} 28. Qd3 {[%clk 0:01:41]}  g6 {[%clk 0:02:14]} 29. Kf1 {[%clk 0:01:35]}  Kg7 {[%clk 0:02:13]} 30. a3 {[%clk 0:01:32]}  h5 {[%clk 0:02:02]} 31. Bg3 {[%clk 0:01:28]}  Kg8 {[%clk 0:01:57]} 32. Be5 {[%clk 0:01:27]}  Bh4 {[%clk 0:01:56]} 33. Rb1 {[%clk 0:01:22]}  Bd8 {[%clk 0:01:18]} 34. b5 {[%clk 0:01:20]}  Ba5 {[%clk 0:01:04]} 35. bxc6 {[%clk 0:01:14]}  bxc6 {[%clk 0:01:04]} 36. Qc2 {[%clk 0:01:11]}  Bd8 {[%clk 0:01:02]} 37. Rb4 {[%clk 0:01:11]}  Qa7 {[%clk 0:01:01]} 38. Kf2 {[%clk 0:00:59]}  Kh7 {[%clk 0:01:00]} 39. g3 {[%clk 0:00:58]}  Qa6 {[%clk 0:00:55]} 40. h4 {[%clk 0:00:50]}  Ba5 {[%clk 0:00:55]} 41. Rb1 {[%clk 0:00:43]}  Bd8 {[%clk 0:00:49]} 42. Kg2 {[%clk 0:00:30]}  Kg8 {[%clk 0:00:47]} 43. Qd2 {[%clk 0:00:25]}  f6 {[%clk 0:00:29]} 44. Bd6 {[%clk 0:00:18]}  Kh7 {[%clk 0:00:28]} 45. Qc2 {[%clk 0:00:15]}  Qc4 {[%clk 0:00:25]} 46. Qxc4 {[%clk 0:00:14]}  dxc4 {[%clk 0:00:25]} 47. Rc1 {[%clk 0:00:14]}  f5 {[%clk 0:00:22]} 48. Rxc4 {[%clk 0:00:14]}  Bf6 {[%clk 0:00:22]} 49. Rb4 {[%clk 0:00:13]}  Kg8 {[%clk 0:00:22]} 50. f4 {[%clk 0:00:08]}  Kf7 {[%clk 0:00:22]} 51. Be5 {[%clk 0:00:09]}  Bd8 {[%clk 0:00:21]} 52. Kf3 {[%clk 0:00:08]}  Ke6 {[%clk 0:00:21]} 53. Ke3 {[%clk 0:00:08]}  Ra7 {[%clk 0:00:19]} 54. Kd3 {[%clk 0:00:07]}  Be7 {[%clk 0:00:18]} 55. Kc4 {[%clk 0:00:07]}  Ra6 {[%clk 0:00:18]} 56. Rb6 {[%clk 0:00:06]}  Rxb6 {[%clk 0:00:17]} 57. cxb6 {[%clk 0:00:06]}  Bxa3 {[%clk 0:00:17]} 58. b7 {[%clk 0:00:06]} 1-0


[Site "https://www.chess.com"]

[Event "Titled Tuesday Blitz August 16 Late 2022"]
[White "Harshavardhan G B"]
[Black "Adewumi, Tanitoluwa"]
[WhiteFideId "25059009"]
[BlackFideId "30966396"]
[WhiteElo "1890"]
[BlackElo "2563"]
[Result "0-1"]
[Round "04"]
[TimeControl "180+1"]
[Date "2022.08.16"]
[WhiteClock "0:00:19"]
[BlackClock "0:00:15"]

1. d4 {[%clk 0:03:00]}  Nf6 {[%clk 0:02:59]} 2. c4 {[%clk 0:02:58]}  e6 {[%clk 0:03:00]} 3. Nf3 {[%clk 0:02:54]}  b6 {[%clk 0:02:59]} 4. g3 {[%clk 0:02:52]}  Ba6 {[%clk 0:02:59]} 5. Nbd2 {[%clk 0:02:51]}  Bb4 {[%clk 0:02:26]} 6. Qc2 {[%clk 0:02:48]}  c5 {[%clk 0:02:15]} 7. Bg2 {[%clk 0:02:41]}  Bb7 {[%clk 0:02:07]} 8. a3 {[%clk 0:02:36]}  Bxd2+ {[%clk 0:02:04]} 9. Qxd2 {[%clk 0:02:37]}  Nc6 {[%clk 0:02:00]} 10. dxc5 {[%clk 0:02:30]}  bxc5 {[%clk 0:01:58]} 11. O-O {[%clk 0:02:30]}  O-O {[%clk 0:01:55]} 12. b4 {[%clk 0:02:27]}  Qe7 {[%clk 0:01:41]} 13. b5 {[%clk 0:02:15]}  Nb8 {[%clk 0:01:31]} 14. a4 {[%clk 0:02:13]}  d5 {[%clk 0:01:29]} 15. Ba3 {[%clk 0:02:12]}  Nbd7 {[%clk 0:01:27]} 16. cxd5 {[%clk 0:02:10]}  exd5 {[%clk 0:01:25]} 17. Nd4 {[%clk 0:02:00]}  Ne4 {[%clk 0:01:21]} 18. Qc2 {[%clk 0:01:57]}  Rac8 {[%clk 0:01:13]} 19. Nb3 {[%clk 0:01:56]}  Rfe8 {[%clk 0:00:59]} 20. Rad1 {[%clk 0:01:53]}  Qe6 {[%clk 0:00:53]} 21. Na5 {[%clk 0:01:18]}  Ba8 {[%clk 0:00:49]} 22. e3 {[%clk 0:00:49]}  d4 {[%clk 0:00:39]} 23. Rfe1 {[%clk 0:00:41]}  Nc3 {[%clk 0:00:23]} 24. Rd2 {[%clk 0:00:20]}  Bxg2 {[%clk 0:00:21]} 25. Kxg2 {[%clk 0:00:21]}  Ne4 {[%clk 0:00:15]} 26. Rdd1 {[%clk 0:00:20]}  Nc3 {[%clk 0:00:14]} 27. Rc1 {[%clk 0:00:20]}  Qd5+ {[%clk 0:00:14]} 28. Kg1 {[%clk 0:00:19]}  Ne5 {[%clk 0:00:12]} 29. e4 {[%clk 0:00:15]}  Nf3+ {[%clk 0:00:12]} 30. Kh1 {[%clk 0:00:13]}  Nxe4 {[%clk 0:00:09]} 31. Re2 {[%clk 0:00:12]}  d3 {[%clk 0:00:08]} 32. Qd1 {[%clk 0:00:12]}  Nd4 {[%clk 0:00:05]} 33. Rxe4 {[%clk 0:00:09]}  Rxe4 {[%clk 0:00:05]} 34. Kg1 {[%clk 0:00:09]}  Rce8 {[%clk 0:00:04]} 35. Bxc5 {[%clk 0:00:04]}  Re1+ {[%clk 0:00:04]} 36. Qxe1 {[%clk 0:00:04]}  Rxe1+ {[%clk 0:00:05]} 37. Rxe1 {[%clk 0:00:05]}  Nf3+ {[%clk 0:00:06]} 38. Kf1 {[%clk 0:00:06]}  Nd2+ {[%clk 0:00:06]} 39. Kg1 {[%clk 0:00:05]}  Nf3+ {[%clk 0:00:07]} 40. Kf1 {[%clk 0:00:06]}  Nxe1 {[%clk 0:00:08]} 41. Kxe1 {[%clk 0:00:07]}  Qxc5 {[%clk 0:00:08]} 42. Kd2 {[%clk 0:00:08]}  Qb4+ {[%clk 0:00:08]} 43. Kxd3 {[%clk 0:00:09]}  Qxa5 {[%clk 0:00:09]} 44. Kc4 {[%clk 0:00:09]}  Qxa4+ {[%clk 0:00:10]} 45. Kc5 {[%clk 0:00:10]}  Qa5 {[%clk 0:00:10]} 46. Kc6 {[%clk 0:00:11]}  Qb6+ {[%clk 0:00:11]} 47. Kd5 {[%clk 0:00:11]}  Qxf2 {[%clk 0:00:12]} 48. Kc6 {[%clk 0:00:11]}  Qb6+ {[%clk 0:00:13]} 49. Kd5 {[%clk 0:00:11]}  a6 {[%clk 0:00:13]} 50. bxa6 {[%clk 0:00:11]}  Qxa6 {[%clk 0:00:14]} 51. g4 {[%clk 0:00:12]}  Qh6 {[%clk 0:00:15]} 52. g5 {[%clk 0:00:13]}  Qxh2 {[%clk 0:00:16]} 53. Ke4 {[%clk 0:00:12]}  Qg3 {[%clk 0:00:16]} 54. Kf5 {[%clk 0:00:13]}  Qxg5+ {[%clk 0:00:16]} 55. Ke4 {[%clk 0:00:12]}  h5 {[%clk 0:00:16]} 56. Kf3 {[%clk 0:00:13]}  h4 {[%clk 0:00:16]} 57. Kf2 {[%clk 0:00:14]}  h3 {[%clk 0:00:17]} 58. Kf1 {[%clk 0:00:15]}  h2 {[%clk 0:00:17]} 59. Kf2 {[%clk 0:00:16]}  h1=Q {[%clk 0:00:16]} 60. Ke2 {[%clk 0:00:16]}  Qe4+ {[%clk 0:00:16]} 61. Kd1 {[%clk 0:00:16]}  Qgd5+ {[%clk 0:00:16]} 62. Kc1 {[%clk 0:00:17]}  Qec4+ {[%clk 0:00:17]} 63. Kb2 {[%clk 0:00:18]}  Qdb5+ {[%clk 0:00:16]} 64. Ka3 {[%clk 0:00:19]}  Qca4# {[%clk 0:00:15]} 0-1


[Site "https://www.chess.com"]

[Event "Titled Tuesday Blitz August 16 Late 2022"]
[White "Ibarra Jerez, Jose Carlos"]
[Black "Vlassov, Nikolai"]
[WhiteFideId "2226332"]
[BlackFideId "4103360"]
[WhiteElo "2628"]
[BlackElo "2324"]
[Result "0-1"]
[Round "04"]
[TimeControl "180+1"]
[Date "2022.08.16"]
[WhiteClock "0:00:15"]
[BlackClock "0:01:07"]

1. e4 {[%clk 0:02:55]}  c5 {[%clk 0:02:59]} 2. Nf3 {[%clk 0:02:54]}  d6 {[%clk 0:02:59]} 3. Nc3 {[%clk 0:02:53]}  Nf6 {[%clk 0:02:57]} 4. d4 {[%clk 0:02:53]}  cxd4 {[%clk 0:02:57]} 5. Nxd4 {[%clk 0:02:54]}  g6 {[%clk 0:02:57]} 6. Be3 {[%clk 0:02:53]}  a6 {[%clk 0:02:57]} 7. f3 {[%clk 0:02:51]}  Nbd7 {[%clk 0:02:55]} 8. Qd2 {[%clk 0:02:50]}  Qc7 {[%clk 0:02:53]} 9. O-O-O {[%clk 0:02:51]}  b5 {[%clk 0:02:52]} 10. Kb1 {[%clk 0:02:48]}  Bb7 {[%clk 0:02:52]} 11. g4 {[%clk 0:02:46]}  Nb6 {[%clk 0:02:51]} 12. g5 {[%clk 0:02:37]}  Nfd7 {[%clk 0:02:51]} 13. Qf2 {[%clk 0:02:18]}  Rc8 {[%clk 0:02:47]} 14. Bd3 {[%clk 0:02:12]}  Bg7 {[%clk 0:02:40]} 15. f4 {[%clk 0:02:06]}  b4 {[%clk 0:02:37]} 16. Nce2 {[%clk 0:02:06]}  Nc4 {[%clk 0:02:36]} 17. Bc1 {[%clk 0:02:03]}  a5 {[%clk 0:02:22]} 18. f5 {[%clk 0:01:30]}  Qb6 {[%clk 0:02:15]} 19. Rhf1 {[%clk 0:01:28]}  O-O {[%clk 0:02:12]} 20. Qg1 {[%clk 0:01:06]}  a4 {[%clk 0:02:06]} 21. Bxc4 {[%clk 0:00:36]}  Rxc4 {[%clk 0:02:05]} 22. b3 {[%clk 0:00:37]}  axb3 {[%clk 0:02:04]} 23. axb3 {[%clk 0:00:38]}  Rc5 {[%clk 0:01:54]} 24. Ng3 {[%clk 0:00:36]}  Ra8 {[%clk 0:01:47]} 25. Bb2 {[%clk 0:00:36]}  Qa6 {[%clk 0:01:43]} 26. f6 {[%clk 0:00:34]}  exf6 {[%clk 0:01:38]} 27. gxf6 {[%clk 0:00:34]}  Nxf6 {[%clk 0:01:37]} 28. Ndf5 {[%clk 0:00:29]}  Ra5 {[%clk 0:01:25]} 29. Qd4 {[%clk 0:00:20]}  gxf5 {[%clk 0:01:12]} 30. Nxf5 {[%clk 0:00:20]}  Bxe4 {[%clk 0:01:07]} 31. Nxg7 {[%clk 0:00:15]}  Ra1+ {[%clk 0:01:07]} 32. Bxa1 {[%clk 0:00:15]}  Qa2+ {[%clk 0:01:07]} 33. Kc1 {[%clk 0:00:15]}  Qxc2# {[%clk 0:01:07]} 0-1


[Site "https://www.chess.com"]

[Event "Titled Tuesday Blitz August 16 Late 2022"]
[White "Kaganskiy, Gleb"]
[Black "Uskov, Artem"]
[WhiteFideId "4132025"]
[BlackFideId "34254854"]
[WhiteElo "2165"]
[BlackElo "2335"]
[Result "0-1"]
[Round "04"]
[TimeControl "180+1"]
[Date "2022.08.18"]
[WhiteClock "0:00:00"]
[BlackClock "0:00:00"]

1. e4 {[%clk 0:00:00]}  Nf6 {[%clk 0:00:00]} 2. e5 {[%clk 0:00:00]}  Nd5 {[%clk 0:00:00]} 3. d4 {[%clk 0:00:00]}  d6 {[%clk 0:00:00]} 4. Nf3 {[%clk 0:00:00]}  Bg4 {[%clk 0:00:00]} 5. Be2 {[%clk 0:00:00]}  e6 {[%clk 0:00:00]} 6. Ng5 {[%clk 0:00:00]}  Bf5 {[%clk 0:00:00]} 7. c4 {[%clk 0:00:00]}  Nb6 {[%clk 0:00:00]} 8. exd6 {[%clk 0:00:00]}  cxd6 {[%clk 0:00:00]} 9. O-O {[%clk 0:00:00]}  Be7 {[%clk 0:00:00]} 10. Nf3 {[%clk 0:00:00]}  O-O {[%clk 0:00:00]} 11. Nc3 {[%clk 0:00:00]}  Nc6 {[%clk 0:00:00]} 12. h3 {[%clk 0:00:00]}  d5 {[%clk 0:00:00]} 13. c5 {[%clk 0:00:00]}  Nd7 {[%clk 0:00:00]} 14. Bf4 {[%clk 0:00:00]}  a6 {[%clk 0:00:00]} 15. Bd3 {[%clk 0:00:00]}  Bg6 {[%clk 0:00:00]} 16. Re1 {[%clk 0:00:00]}  b6 {[%clk 0:00:00]} 17. cxb6 {[%clk 0:00:00]}  Qxb6 {[%clk 0:00:00]} 18. Bxg6 {[%clk 0:00:00]}  hxg6 {[%clk 0:00:00]} 19. b3 {[%clk 0:00:00]}  Rfc8 {[%clk 0:00:00]} 20. Na4 {[%clk 0:00:00]}  Qb5 {[%clk 0:00:00]} 21. Rc1 {[%clk 0:00:00]}  Ba3 {[%clk 0:00:00]} 22. Rc2 {[%clk 0:00:00]}  Nb4 {[%clk 0:00:00]} 23. Rxc8+ {[%clk 0:00:00]}  Rxc8 {[%clk 0:00:00]} 24. Ng5 {[%clk 0:00:00]}  Nd3 {[%clk 0:00:00]} 25. Qg4 {[%clk 0:00:00]}  Nxe1 {[%clk 0:00:00]} 26. Qh4 {[%clk 0:00:00]}  Nf8 {[%clk 0:00:00]} 27. Bd2 {[%clk 0:00:00]}  f6 {[%clk 0:00:00]} 28. Bxe1 {[%clk 0:00:00]}  fxg5 {[%clk 0:00:00]} 0-1


[Site "https://www.chess.com"]

[Event "Titled Tuesday Blitz August 16 Late 2022"]
[White "Kalavannan, Koby"]
[Black "Shapiro, Daniel"]
[WhiteFideId "425753"]
[BlackFideId "2001780"]
[WhiteElo "1927"]
[BlackElo "2284"]
[Result "1-0"]
[Round "04"]
[TimeControl "180+1"]
[Date "2022.08.18"]
[WhiteClock "0:00:00"]
[BlackClock "0:00:00"]

1. d4 {[%clk 0:00:00]}  Nf6 {[%clk 0:00:00]} 2. c4 {[%clk 0:00:00]}  e6 {[%clk 0:00:00]} 3. g3 {[%clk 0:00:00]}  d5 {[%clk 0:00:00]} 4. Bg2 {[%clk 0:00:00]}  Bb4+ {[%clk 0:00:00]} 5. Bd2 {[%clk 0:00:00]}  Be7 {[%clk 0:00:00]} 6. Nf3 {[%clk 0:00:00]}  c6 {[%clk 0:00:00]} 7. Qc2 {[%clk 0:00:00]}  O-O {[%clk 0:00:00]} 8. O-O {[%clk 0:00:00]}  b6 {[%clk 0:00:00]} 9. a4 {[%clk 0:00:00]}  Bb7 {[%clk 0:00:00]} 10. a5 {[%clk 0:00:00]}  Ba6 {[%clk 0:00:00]} 11. b3 {[%clk 0:00:00]}  Nbd7 {[%clk 0:00:00]} 12. Rc1 {[%clk 0:00:00]}  Rc8 {[%clk 0:00:00]} 13. axb6 {[%clk 0:00:00]}  Qxb6 {[%clk 0:00:00]} 14. c5 {[%clk 0:00:00]}  Qb7 {[%clk 0:00:00]} 15. Nc3 {[%clk 0:00:00]}  e5 {[%clk 0:00:00]} 16. dxe5 {[%clk 0:00:00]}  Ng4 {[%clk 0:00:00]} 17. Qf5 {[%clk 0:00:00]}  Nxf2 {[%clk 0:00:00]} 18. Kxf2 {[%clk 0:00:00]}  Nxc5 {[%clk 0:00:00]} 19. Nd4 {[%clk 0:00:00]}  Qb6 {[%clk 0:00:00]} 20. Be3 {[%clk 0:00:00]}  Rce8 {[%clk 0:00:00]} 21. Nxc6 {[%clk 0:00:00]}  Qxc6 {[%clk 0:00:00]} 22. Nxd5 {[%clk 0:00:00]}  Qe6 {[%clk 0:00:00]} 23. Nxe7+ {[%clk 0:00:00]}  Rxe7 {[%clk 0:00:00]} 24. Qxe6 {[%clk 0:00:00]}  fxe6+ {[%clk 0:00:00]} 25. Kg1 {[%clk 0:00:00]}  Nxb3 {[%clk 0:00:00]} 26. Rxa6 {[%clk 0:00:00]}  Nxc1 {[%clk 0:00:00]} 27. Bxc1 {[%clk 0:00:00]}  Rd8 {[%clk 0:00:00]} 28. Bf4 {[%clk 0:00:00]}  Rd1+ {[%clk 0:00:00]} 29. Kf2 {[%clk 0:00:00]}  Rf7 {[%clk 0:00:00]} 30. Bf3 {[%clk 0:00:00]}  Re7 {[%clk 0:00:00]} 31. Bg5 {[%clk 0:00:00]}  Rf7 {[%clk 0:00:00]} 32. Rxe6 {[%clk 0:00:00]}  h6 {[%clk 0:00:00]} 33. Be3 {[%clk 0:00:00]}  Ra1 {[%clk 0:00:00]} 34. Re8+ {[%clk 0:00:00]}  Kh7 {[%clk 0:00:00]} 35. e6 {[%clk 0:00:00]}  Rc7 {[%clk 0:00:00]} 36. e7 {[%clk 0:00:00]}  Ra4 {[%clk 0:00:00]} 37. Rh8+ {[%clk 0:00:00]}  Kxh8 {[%clk 0:00:00]} 38. e8=Q+ {[%clk 0:00:00]}  Kh7 {[%clk 0:00:00]} 39. Be4+ {[%clk 0:00:00]} 1-0


[Site "https://www.chess.com"]

[Event "Titled Tuesday Blitz August 16 Late 2022"]
[White "Karaev, Seit-Amet"]
[Black "Tanenbaum, Zachary"]
[WhiteFideId "4169549"]
[BlackFideId "2060850"]
[WhiteElo "2272"]
[BlackElo "2175"]
[Result "0-1"]
[Round "04"]
[TimeControl "180+1"]
[Date "2022.08.16"]
[WhiteClock "0:00:15"]
[BlackClock "0:00:06"]

1. e4 {[%clk 0:03:00]}  e5 {[%clk 0:02:59]} 2. f4 {[%clk 0:03:00]}  Nc6 {[%clk 0:03:00]} 3. Nf3 {[%clk 0:03:00]}  d6 {[%clk 0:03:01]} 4. Bc4 {[%clk 0:03:01]}  Bg4 {[%clk 0:02:53]} 5. O-O {[%clk 0:03:00]}  Nf6 {[%clk 0:02:53]} 6. d3 {[%clk 0:03:00]}  Nd4 {[%clk 0:02:52]} 7. fxe5 {[%clk 0:02:59]}  Bxf3 {[%clk 0:02:49]} 8. gxf3 {[%clk 0:02:53]}  dxe5 {[%clk 0:02:50]} 9. c3 {[%clk 0:02:53]}  Nc6 {[%clk 0:02:47]} 10. f4 {[%clk 0:02:53]}  Be7 {[%clk 0:02:01]} 11. f5 {[%clk 0:02:50]}  O-O {[%clk 0:01:57]} 12. Be3 {[%clk 0:02:45]}  a6 {[%clk 0:01:57]} 13. a4 {[%clk 0:02:42]}  Nd7 {[%clk 0:01:47]} 14. Nd2 {[%clk 0:02:40]}  Bc5 {[%clk 0:01:45]} 15. Qf3 {[%clk 0:02:40]}  Qg5+ {[%clk 0:01:44]} 16. Kf2 {[%clk 0:02:38]}  Nf6 {[%clk 0:01:39]} 17. Rg1 {[%clk 0:02:33]}  Bxe3+ {[%clk 0:01:38]} 18. Qxe3 {[%clk 0:02:31]}  Ng4+ {[%clk 0:01:38]} 19. Rxg4 {[%clk 0:02:32]}  Qxg4 {[%clk 0:01:39]} 20. Rg1 {[%clk 0:02:31]}  Qh4+ {[%clk 0:01:26]} 21. Ke2 {[%clk 0:02:30]}  Qxh2+ {[%clk 0:01:22]} 22. Kd1 {[%clk 0:02:27]}  Qh4 {[%clk 0:00:22]} 23. Nf3 {[%clk 0:02:18]}  Qf6 {[%clk 0:00:21]} 24. Kc2 {[%clk 0:02:12]}  b5 {[%clk 0:00:21]} 25. Bd5 {[%clk 0:02:10]}  Rab8 {[%clk 0:00:20]} 26. Bxc6 {[%clk 0:01:57]}  Qxc6 {[%clk 0:00:21]} 27. Nxe5 {[%clk 0:01:58]}  Qd6 {[%clk 0:00:18]} 28. Ng4 {[%clk 0:01:43]}  f6 {[%clk 0:00:14]} 29. e5 {[%clk 0:01:15]}  fxe5 {[%clk 0:00:13]} 30. Qg5 {[%clk 0:01:16]}  Kh8 {[%clk 0:00:09]} 31. f6 {[%clk 0:01:05]}  gxf6 {[%clk 0:00:07]} 32. Qh5 {[%clk 0:00:58]}  Qe7 {[%clk 0:00:06]} 33. Rh1 {[%clk 0:00:56]}  e4 {[%clk 0:00:06]} 34. d4 {[%clk 0:00:52]}  bxa4 {[%clk 0:00:07]} 35. Ne3 {[%clk 0:00:50]}  a3 {[%clk 0:00:07]} 36. b4 {[%clk 0:00:48]}  a2 {[%clk 0:00:06]} 37. Nf5 {[%clk 0:00:40]}  Qf7 {[%clk 0:00:06]} 38. Qh6 {[%clk 0:00:33]}  a5 {[%clk 0:00:07]} 39. Nh4 {[%clk 0:00:29]}  Rg8 {[%clk 0:00:06]} 40. Rf1 {[%clk 0:00:19]}  axb4 {[%clk 0:00:05]} 41. Rxf6 {[%clk 0:00:17]}  b3+ {[%clk 0:00:05]} 42. Kb2 {[%clk 0:00:16]}  a1=Q+ {[%clk 0:00:04]} 43. Kxa1 {[%clk 0:00:17]}  b2+ {[%clk 0:00:04]} 44. Kb1 {[%clk 0:00:16]}  Qa2+ {[%clk 0:00:04]} 45. Kxa2 {[%clk 0:00:14]}  b1=Q+ {[%clk 0:00:05]} 46. Ka3 {[%clk 0:00:15]}  Qa1# {[%clk 0:00:06]} 0-1


[Site "https://www.chess.com"]

[Event "Titled Tuesday Blitz August 16 Late 2022"]
[White "Kim, Sergey"]
[Black "Babazada, Khazar"]
[WhiteFideId "13700570"]
[BlackFideId "13413554"]
[WhiteElo "2613"]
[BlackElo "2409"]
[Result "0-1"]
[Round "04"]
[TimeControl "180+1"]
[Date "2022.08.16"]
[WhiteClock "0:00:15"]
[BlackClock "0:01:53"]

1. d4 {[%clk 0:03:00]}  b6 {[%clk 0:02:54]} 2. c4 {[%clk 0:03:00]}  Bb7 {[%clk 0:02:54]} 3. Nc3 {[%clk 0:03:00]}  Nf6 {[%clk 0:02:53]} 4. Nf3 {[%clk 0:02:59]}  e6 {[%clk 0:02:52]} 5. a3 {[%clk 0:02:59]}  c5 {[%clk 0:02:49]} 6. d5 {[%clk 0:02:58]}  exd5 {[%clk 0:02:47]} 7. cxd5 {[%clk 0:02:58]}  g6 {[%clk 0:02:48]} 8. e4 {[%clk 0:02:54]}  Bg7 {[%clk 0:02:48]} 9. Bd3 {[%clk 0:02:40]}  O-O {[%clk 0:02:48]} 10. O-O {[%clk 0:02:40]}  d6 {[%clk 0:02:48]} 11. Re1 {[%clk 0:02:39]}  a6 {[%clk 0:02:47]} 12. a4 {[%clk 0:02:38]}  Re8 {[%clk 0:02:45]} 13. Bf4 {[%clk 0:02:38]}  Bc8 {[%clk 0:02:45]} 14. h3 {[%clk 0:02:37]}  Bf8 {[%clk 0:02:35]} 15. Qd2 {[%clk 0:02:33]}  Nbd7 {[%clk 0:02:34]} 16. Bg5 {[%clk 0:02:09]}  Qc7 {[%clk 0:02:26]} 17. Qf4 {[%clk 0:02:05]}  Bg7 {[%clk 0:02:26]} 18. Qh4 {[%clk 0:02:04]}  Kh8 {[%clk 0:02:21]} 19. Bh6 {[%clk 0:02:01]}  Bxh6 {[%clk 0:02:18]} 20. Qxh6 {[%clk 0:02:01]}  Ne5 {[%clk 0:02:19]} 21. Nxe5 {[%clk 0:02:00]}  Rxe5 {[%clk 0:02:20]} 22. f4 {[%clk 0:01:48]}  Rh5 {[%clk 0:02:20]} 23. Qf8+ {[%clk 0:01:48]}  Ng8 {[%clk 0:02:19]} 24. e5 {[%clk 0:01:41]}  dxe5 {[%clk 0:02:15]} 25. fxe5 {[%clk 0:01:26]}  Bb7 {[%clk 0:02:15]} 26. Qd6 {[%clk 0:01:15]}  Qxd6 {[%clk 0:02:15]} 27. exd6 {[%clk 0:01:15]}  Rd8 {[%clk 0:02:16]} 28. Re7 {[%clk 0:01:11]}  Bxd5 {[%clk 0:02:10]} 29. Rc7 {[%clk 0:00:44]}  Rxd6 {[%clk 0:02:09]} 30. Nxd5 {[%clk 0:00:41]}  Rhxd5 {[%clk 0:02:07]} 31. Bxa6 {[%clk 0:00:39]}  Kg7 {[%clk 0:02:03]} 32. Bc4 {[%clk 0:00:33]}  Rf5 {[%clk 0:02:02]} 33. Rf1 {[%clk 0:00:30]}  Rxf1+ {[%clk 0:01:55]} 34. Kxf1 {[%clk 0:00:29]}  Nh6 {[%clk 0:01:55]} 35. g4 {[%clk 0:00:27]}  Kf6 {[%clk 0:01:56]} 36. Rb7 {[%clk 0:00:22]}  Kg5 {[%clk 0:01:56]} 37. b3 {[%clk 0:00:20]}  Kh4 {[%clk 0:01:56]} 38. Kg2 {[%clk 0:00:20]}  Rd2+ {[%clk 0:01:56]} 39. Kf3 {[%clk 0:00:20]}  Kxh3 {[%clk 0:01:54]} 40. Rxb6 {[%clk 0:00:20]}  Nxg4 {[%clk 0:01:54]} 41. a5 {[%clk 0:00:20]}  f5 {[%clk 0:01:54]} 42. Kf4 {[%clk 0:00:19]}  h6 {[%clk 0:01:53]} 43. Bf1+ {[%clk 0:00:15]}  Kh4 {[%clk 0:01:53]} 0-1


[Site "https://www.chess.com"]

[Event "Titled Tuesday Blitz August 16 Late 2022"]
[White "Koepke, Christian"]
[Black "Poltorak, Sebastian"]
[WhiteFideId "4655737"]
[BlackFideId "1199498"]
[WhiteElo "2188"]
[BlackElo "2102"]
[Result "1-0"]
[Round "04"]
[TimeControl "180+1"]
[Date "2022.08.18"]
[WhiteClock "0:00:00"]
[BlackClock "0:00:00"]

1. d4 {[%clk 0:00:00]}  Nf6 {[%clk 0:00:00]} 2. e3 {[%clk 0:00:00]}  g6 {[%clk 0:00:00]} 3. Nf3 {[%clk 0:00:00]}  Bg7 {[%clk 0:00:00]} 4. Be2 {[%clk 0:00:00]}  O-O {[%clk 0:00:00]} 5. O-O {[%clk 0:00:00]}  d5 {[%clk 0:00:00]} 6. b4 {[%clk 0:00:00]}  Ne4 {[%clk 0:00:00]} 7. c4 {[%clk 0:00:00]}  e6 {[%clk 0:00:00]} 8. Bb2 {[%clk 0:00:00]}  c6 {[%clk 0:00:00]} 9. Nbd2 {[%clk 0:00:00]}  f5 {[%clk 0:00:00]} 10. b5 {[%clk 0:00:00]}  Nd7 {[%clk 0:00:00]} 11. Qc2 {[%clk 0:00:00]}  Ndf6 {[%clk 0:00:00]} 12. Ba3 {[%clk 0:00:00]}  Re8 {[%clk 0:00:00]} 13. bxc6 {[%clk 0:00:00]}  bxc6 {[%clk 0:00:00]} 14. cxd5 {[%clk 0:00:00]}  cxd5 {[%clk 0:00:00]} 15. Rac1 {[%clk 0:00:00]}  Bd7 {[%clk 0:00:00]} 16. Qc7 {[%clk 0:00:00]}  Qxc7 {[%clk 0:00:00]} 17. Rxc7 {[%clk 0:00:00]}  Rec8 {[%clk 0:00:00]} 18. Rfc1 {[%clk 0:00:00]}  Nxd2 {[%clk 0:00:00]} 19. Nxd2 {[%clk 0:00:00]}  Kf7 {[%clk 0:00:00]} 20. Nf3 {[%clk 0:00:00]}  Ke8 {[%clk 0:00:00]} 21. Ne5 {[%clk 0:00:00]}  Rxc7 {[%clk 0:00:00]} 22. Rxc7 {[%clk 0:00:00]}  Rc8 {[%clk 0:00:00]} 23. Rxa7 {[%clk 0:00:00]}  Rb8 {[%clk 0:00:00]} 24. f3 {[%clk 0:00:00]}  Bh6 {[%clk 0:00:00]} 25. Kf2 {[%clk 0:00:00]}  f4 {[%clk 0:00:00]} 26. exf4 {[%clk 0:00:00]}  Bxf4 {[%clk 0:00:00]} 27. Bd6 {[%clk 0:00:00]}  Rc8 {[%clk 0:00:00]} 28. Nxd7 {[%clk 0:00:00]} 1-0


[Site "https://www.chess.com"]